[Event "EYCC Open-U10 2019"]
[Site "Bratislava"]
[Date "2019.08.08"]
[Round "7.5"]
[White "Royal, Shreyas"]
[Black "Golovchenko, Bogdan"]
[Result "1/2-1/2"]
[ECO "A58"]
[WhiteElo "1996"]
[BlackElo "1723"]
[Annotator "NA"]
[PlyCount "122"]
[EventDate "2019.08.02"]
[EventType "swiss"]
[EventCountry "SVK"]
[SourceTitle "playchess.com"]
[Source "ChessBase"]
[SourceQuality "1"]
[TimeControl "40/5400+30:1800+30"]

1. d4 {[%emt 0:00:00]} Nf6 {[%emt 0:00:00]} 2. c4 {[%emt 0:00:37]} c5 {[%emt 0:00:09]} 3. d5 {[%emt 0:00:53]} b5 {[%emt 0:00:43]} 4. cxb5 {[%emt 0:01:22]} a6 {[%emt 0:00:35]} 5. bxa6 {[%emt 0:01:22]} Bxa6 {[%emt 0:00:42]} 6. Nc3 {[%emt 0:01:20]} d6 {[%emt 0:01:43]} 7. Nf3 {[%emt 0:02:58]} g6 {[%emt 0:00:19]} 8. g3 {[%emt 0:00:48]} Bg7 {[%emt 0:00:08]} 9. Bg2 {[%emt 0:00:50]} Nbd7 {[%emt 0:00:12]} 10. Rb1 {[%emt 0:02:31]} O-O {[%emt 0:00:28]} 11. O-O {[%emt 0:01:50]} Qa5 {[%emt 0:02:42]} 12. Bd2 {[%emt 0:12:18]} Ng4 {[%emt 0:01:20]} 13. Qc2 {[%emt 0:03:15]} Nge5 {[%emt 0:04:08]} 14. Nxe5 {[%emt 0:01:32]} Nxe5 {[%emt 0:01:15]} 15. b3 {[%emt 0:00:19]} Rfb8 {[%emt 0:02:19]} 16. Rfe1 {[%emt 0:04:52]} Qc7 {[%emt 0:01:06]} 17. h3 {[%emt 0:02:27]} Bc8 {[%emt 0:05:44]} 18. f4 {[%emt 0:02:59]} Nd7 {[%emt 0:00:37]} 19. e4 {[%emt 0:00:48]} c4 {[%emt 0:11:43]} 20. Na4 {[%emt 0:10:20]} Nb6 {[%emt 0:09:46]} 21. Nxb6 {[%emt 0:02:38]} Qxb6+ {[%emt 0:00:08]} 22. Be3 {[%emt 0:01:00]} Bd4 {[%emt 0:00:33]} 23. Bxd4 {[%emt 0:00:20]} Qxd4+ {[%emt 0:00:06]} 24. Kh2 {[%emt 0:00:06]} Ba6 {[%emt 0:04:25]} 25. Red1 {[%emt 0:05:26]} Qc5 {[%emt 0:04:58]} 26. e5 Ra7 {[%emt 0:14:48]} 27. e6 {[%emt 0:09:15]} f6 {[%emt 0:00:53]} 28. h4 Kg7 {[%emt 0:04:42]} 29. f5 {[%emt 0:04:14]} Rc7 {[%emt 0:04:26]} 30. bxc4 {[%emt 0:06:44]} Rxb1 {[%emt 0:00:48]} 31. Qxb1 {[%emt 0:00:38]} Qxc4 {[%emt 0:01:51]} 32. Qb3 {[%emt 0:02:15]} gxf5 {[%emt 0:03:40]} 33. Qb8 {[%emt 0:01:44]} Rc8 {[%emt 0:00:48]} 34. Qa7 {[%emt 0:00:07]} Kf8 {[%emt 0:01:29]} 35. Qf2 {[%emt 0:00:26]} Qg4 {[%emt 0:05:45]} 36. Rd4 {[%emt 0:02:25]} Qe2 {[%emt 0:00:46]} 37. Qxe2 {[%emt 0:01:27]} Bxe2 {[%emt 0:00:06]} 38. Rd2 {[%emt 0:00:07]} Bb5 {[%emt 0:01:22]} 39. Bh3 {[%emt 0:00:27]} Ra8 {[%emt 0:00:50]} 40. Bxf5 {[%emt 0:00:00]} h6 {[%emt 0:00:00]} 41. Rc2 {[%emt 0:06:19]} Ra4 {[%emt 0:00:48]} 42. Rb2 {[%emt 0:02:46]} Bc4 {[%emt 0:00:40]} 43. Rb8+ {[%emt 0:00:23]} Kg7 {[%emt 0:00:05]} 44. Rb7 {[%emt 0:01:37]} Rxa2+ {[%emt 0:00:00]} 45. Kh3 {[%emt 0:00:04]} Kf8 {[%emt 0:03:43]} 46. Rb8+ {[%emt 0:00:42]} Kg7 {[%emt 0:00:06]} 47. Re8 {[%emt 0:00:05]} Ra7 {[%emt 0:00:19]} 48. Be4 {[%emt 0:00:26]} Bb5 {[%emt 0:00:47]} 49. Rb8 {[%emt 0:00:27]} Bf1+ {[%emt 0:00:40]} 50. Kg4 {[%emt 0:00:13]} Ra4 {[%emt 0:02:21]} 51. Kf3 {[%emt 0:00:11]} Ra3+ {[%emt 0:01:30]} 52. Kf2 {[%emt 0:00:13]} Bh3 {[%emt 0:01:28]} 53. Re8 {[%emt 0:00:50]} Ra7 {[%emt 0:00:12]} 54. Bf3 {[%emt 0:01:07]} Bf5 {[%emt 0:02:23]} 55. h5 {[%emt 0:03:34]} Bc2 {[%emt 0:00:54]} 56. Ke3 {[%emt 0:00:57]} Ba4 {[%emt 0:00:51]} 57. Rb8 {[%emt 0:00:27]} Rc7 {[%emt 0:02:30]} 58. Be4 {[%emt 0:03:20]} Bd1 {[%emt 0:00:41]} 59. Bg6 {[%emt 0:00:31]} Bg4 {[%emt 0:00:24]} 60. Bf7 {[%emt 0:01:23]} Kh7 {[%emt 0:09:02]} 61. Rg8 {[%emt 0:03:11]} Bxh5 1/2-1/2

[Event "EYCC Open-U10 2019"]
[Site "Bratislava"]
[Date "2019.08.08"]
[Round "7.6"]
[White "kiladze, Luka"]
[Black "Materia, Marco"]
[Result "0-1"]
[ECO "D59"]
[WhiteElo "1683"]
[BlackElo "2243"]
[Annotator "NA"]
[PlyCount "96"]
[EventDate "2019.08.02"]
[EventType "swiss"]
[EventCountry "SVK"]
[SourceTitle "playchess.com"]
[Source "ChessBase"]
[SourceQuality "1"]
[TimeControl "40/5400+30:1800+30"]

1. d4 {[%emt 0:00:00]} d5 {[%emt 0:00:00]} 2. c4 {[%emt 0:00:01]} e6 {[%emt 0:00:00]} 3. Nc3 {[%emt 0:00:18]} Nf6 {[%emt 0:00:00]} 4. Bg5 {[%emt 0:00:43]} Be7 {[%emt 0:00:10]} 5. e3 {[%emt 0:00:38]} O-O {[%emt 0:00:28]} 6. Nf3 {[%emt 0:00:42]} h6 {[%emt 0:00:26]} 7. Bh4 {[%emt 0:01:18]} b6 {[%emt 0:00:20]} 8. cxd5 {[%emt 0:00:18]} Nxd5 {[%emt 0:01:37]} 9. Bxe7 {[%emt 0:01:37]} Qxe7 {[%emt 0:00:14]} 10. Bd3 {[%emt 0:01:51]} Nxc3 {[%emt 0:00:58]} 11. bxc3 {[%emt 0:00:14]} Bb7 {[%emt 0:00:28]} 12. O-O {[%emt 0:00:55]} c5 {[%emt 0:04:07]} 13. Rc1 {[%emt 0:02:33]} Nd7 {[%emt 0:06:02]} 14. Bb1 {[%emt 0:02:33]} Rfd8 {[%emt 0:02:10]} 15. Qc2 {[%emt 0:04:20]} Nf6 {[%emt 0:01:32]} 16. Ne5 {[%emt 0:02:02]} Rac8 {[%emt 0:02:04]} 17. Qe2 {[%emt 0:03:23]} cxd4 {[%emt 0:06:48]} 18. cxd4 {[%emt 0:01:38]} Qa3 {[%emt 0:07:57]} 19. Rcd1 {[%emt 0:10:17]} Nd5 {[%emt 0:11:59]} 20. Qh5 {[%emt 0:07:24]} Qe7 {[%emt 0:04:18]} 21. Bd3 {[%emt 0:06:17]} Rc3 {[%emt 0:12:35]} 22. Qe2 {[%emt 0:07:53]} Rdc8 {[%emt 0:02:45]} 23. Qd2 {[%emt 0:08:43]} Nb4 {[%emt 0:09:00]} 24. Bb1 {[%emt 0:03:10]} Ba6 {[%emt 0:02:06]} 25. Rfe1 {[%emt 0:02:57]} Rc2 {[%emt 0:00:55]} 26. Bxc2 {[%emt 0:01:05]} Rxc2 {[%emt 0:00:38]} 27. Nc6 {[%emt 0:00:34]} Rxc6 {[%emt 0:00:26]} 28. Rc1 {[%emt 0:00:39]} Rc4 {[%emt 0:04:13]} 29. Rxc4 {[%emt 0:02:30]} Bxc4 {[%emt 0:00:05]} 30. a4 {[%emt 0:05:56]} a5 {[%emt 0:03:57]} 31. e4 {[%emt 0:01:21]} Qd7 {[%emt 0:00:45]} 32. h3 {[%emt 0:02:09]} Qxa4 {[%emt 0:00:56]} 33. Qf4 {[%emt 0:00:58]} Qc6 {[%emt 0:02:22]} 34. Re3 {[%emt 0:03:08]} Na6 {[%emt 0:09:00]} 35. Rg3 {[%emt 0:00:57]} Qc7 36. Qg4 {[%emt 0:01:13]} g6 {[%emt 0:01:23]} 37. h4 {[%emt 0:01:00]} h5 {[%emt 0:00:41]} 38. Qg5 {[%emt 0:00:26]} Qd6 {[%emt 0:02:02]} 39. Qf6 {[%emt 0:00:37]} Nc7 {[%emt 0:01:00]} 40. d5 {[%emt 0:00:00]} Ne8 {[%emt 0:00:00]} 41. Qd4 {[%emt 0:04:26]} exd5 {[%emt 0:02:49]} 42. Re3 {[%emt 0:02:36]} Qf6 {[%emt 0:00:56]} 43. e5 {[%emt 0:01:09]} Qe6 {[%emt 0:00:35]} 44. Rg3 {[%emt 0:00:12]} Ng7 {[%emt 0:00:46]} 45. Rg5 {[%emt 0:00:46]} a4 {[%emt 0:01:06]} 46. f4 {[%emt 0:00:10]} a3 {[%emt 0:00:21]} 47. g4 {[%emt 0:00:15]} Qc6 {[%emt 0:00:50]} 48. Kg2 {[%emt 0:00:35]} Ne6 0-1

[Event "EYCC Open-U10 2019"]
[Site "Bratislava"]
[Date "2019.08.08"]
[Round "7.7"]
[White "Asikainen, Eeli"]
[Black "Salinas Tomas, Daniel"]
[Result "1-0"]
[ECO "B22"]
[WhiteElo "1447"]
[BlackElo "2001"]
[Annotator "NA"]
[PlyCount "93"]
[EventDate "2019.08.02"]
[EventType "swiss"]
[EventCountry "SVK"]
[SourceTitle "playchess.com"]
[Source "ChessBase"]
[SourceQuality "1"]
[TimeControl "40/5400+30:1800+30"]

1. e4 {[%emt 0:00:00]} c5 {[%emt 0:00:00]} 2. c3 {[%emt 0:00:00]} Nf6 {[%emt 0:00:00]} 3. e5 {[%emt 0:00:00]} Nd5 {[%emt 0:00:14]} 4. d4 {[%emt 0:00:00]} cxd4 {[%emt 0:00:08]} 5. cxd4 {[%emt 0:00:04]} d6 {[%emt 0:00:23]} 6. exd6 {[%emt 0:00:22]} Qxd6 {[%emt 0:00:23]} 7. Nc3 {[%emt 0:00:23]} Nc6 {[%emt 0:00:59]} 8. Nf3 {[%emt 0:00:22]} Bg4 {[%emt 0:01:13]} 9. Be2 {[%emt 0:00:32]} e6 {[%emt 0:01:24]} 10. h3 {[%emt 0:02:01]} Bh5 {[%emt 0:00:54]} 11. O-O {[%emt 0:00:43]} Be7 {[%emt 0:00:28]} 12. a3 {[%emt 0:03:00]} O-O {[%emt 0:01:12]} 13. Re1 {[%emt 0:09:22]} Rfd8 {[%emt 0:04:07]} 14. Be3 {[%emt 0:07:36]} Rac8 {[%emt 0:01:49]} 15. Rc1 {[%emt 0:01:27]} a6 {[%emt 0:02:16]} 16. Ne4 {[%emt 0:04:47]} Qc7 {[%emt 0:08:55]} 17. Ne5 {[%emt 0:04:35]} Bxe2 {[%emt 0:01:55]} 18. Qxe2 {[%emt 0:03:26]} Qb6 {[%emt 0:01:14]} 19. Nxc6 {[%emt 0:07:41]} Rxc6 {[%emt 0:00:17]} 20. Rxc6 {[%emt 0:00:23]} Qxc6 {[%emt 0:00:44]} 21. Rc1 {[%emt 0:00:49]} Qd7 {[%emt 0:02:14]} 22. Nc5 {[%emt 0:04:09]} Bxc5 {[%emt 0:01:19]} 23. Rxc5 {[%emt 0:02:50]} Rc8 {[%emt 0:01:26]} 24. Qc2 {[%emt 0:01:08]} Rxc5 {[%emt 0:00:34]} 25. dxc5 {[%emt 0:02:09]} Qc6 {[%emt 0:01:22]} 26. Bd4 {[%emt 0:01:47]} f6 {[%emt 0:14:25]} 27. b4 {[%emt 0:01:58]} b5 {[%emt 0:01:37]} 28. Bb2 {[%emt 0:05:30]} g6 {[%emt 0:05:42]} 29. Qe4 {[%emt 0:02:54]} Kf7 {[%emt 0:06:52]} 30. Qf3 {[%emt 0:02:36]} Ke7 {[%emt 0:03:47]} 31. Bxf6+ {[%emt 0:01:24]} Kd7 {[%emt 0:00:32]} 32. Bb2 {[%emt 0:00:24]} Ke7 {[%emt 0:02:42]} 33. Be5 {[%emt 0:01:48]} Qe8 34. Qd3 {[%emt 0:01:56]} Kd7 {[%emt 0:02:03]} 35. a4 {[%emt 0:02:04]} Kc6 {[%emt 0:00:17]} 36. axb5+ {[%emt 0:01:23]} axb5 {[%emt 0:00:10]} 37. Qa3 {[%emt 0:00:34]} Qc8 {[%emt 0:00:40]} 38. Qa5 {[%emt 0:01:34]} Qb7 {[%emt 0:01:08]} 39. Qd8 {[%emt 0:01:59]} Qd7 {[%emt 0:00:09]} 40. Qb8 {[%emt 0:00:00]} Nxb4 {[%emt 0:00:00]} 41. Qb6+ {[%emt 0:02:16]} Kd5 {[%emt 0:01:54]} 42. c6 {[%emt 0:01:06]} Nxc6 {[%emt 0:01:04]} 43. Qxb5+ {[%emt 0:00:07]} Ke4 {[%emt 0:00:33]} 44. Qe2+ {[%emt 0:02:53]} Kf5 {[%emt 0:00:32]} 45. g4+ {[%emt 0:00:13]} Kg5 {[%emt 0:00:25]} 46. f4+ {[%emt 0:00:16]} Kh4 {[%emt 0:00:23]} 47. Bf6+ {[%emt 0:00:09] Kg5} 1-0

[Event "EYCC Open-U10 2019"]
[Site "Bratislava"]
[Date "2019.08.08"]
[Round "7.8"]
[White "Toktomushev, Teimur"]
[Black "Ljepic, Andrej"]
[Result "1/2-1/2"]
[ECO "A46"]
[WhiteElo "1977"]
[BlackElo "1824"]
[Annotator "NA"]
[PlyCount "55"]
[EventDate "2019.08.02"]
[EventType "swiss"]
[EventCountry "SVK"]
[SourceTitle "playchess.com"]
[Source "ChessBase"]
[SourceQuality "1"]
[TimeControl "40/5400+30:1800+30"]

1. d4 {[%emt 0:00:00]} Nf6 {[%emt 0:00:00]} 2. Nf3 {[%emt 0:00:00]} c5 {[%emt 0:00:00]} 3. c3 {[%emt 0:00:00]} e6 {[%emt 0:00:13]} 4. Bf4 {[%emt 0:03:58]} b6 {[%emt 0:00:45]} 5. e3 {[%emt 0:00:47]} Bb7 {[%emt 0:00:50]} 6. h3 {[%emt 0:00:13]} Be7 {[%emt 0:00:29]} 7. Nbd2 {[%emt 0:00:19]} O-O {[%emt 0:00:34]} 8. Be2 {[%emt 0:01:49]} d6 {[%emt 0:01:21]} 9. O-O {[%emt 0:00:54]} cxd4 {[%emt 0:01:23]} 10. exd4 {[%emt 0:03:21]} Nbd7 {[%emt 0:06:22]} 11. a4 {[%emt 0:02:58]} a6 {[%emt 0:01:53]} 12. Re1 {[%emt 0:16:03]} Qc7 {[%emt 0:10:05]} 13. Bd3 {[%emt 0:03:23]} Rfe8 {[%emt 0:08:58]} 14. Ne4 {[%emt 0:02:01]} Nxe4 {[%emt 0:02:22]} 15. Bxe4 {[%emt 0:01:37]} Bxe4 {[%emt 0:00:01]} 16. Rxe4 {[%emt 0:00:01]} Nf6 {[%emt 0:01:14]} 17. Re1 {[%emt 0:00:08]} Nd5 {[%emt 0:06:07]} 18. Bg3 {[%emt 0:10:00]} b5 {[%emt 0:06:33]} 19. Qb3 {[%emt 0:10:29]} Qc4 {[%emt 0:07:37]} 20. Nd2 {[%emt 0:06:06]} Qxb3 {[%emt 0:03:56]} 21. Nxb3 {[%emt 0:00:03]} Nb6 {[%emt 0:07:40]} 22. axb5 {[%emt 0:01:20]} axb5 {[%emt 0:00:08]} 23. Na5 {[%emt 0:03:41]} Nc4 {[%emt 0:09:41]} 24. Nxc4 {[%emt 0:01:20]} bxc4 {[%emt 0:02:12]} 25. Rxa8 {[%emt 0:00:58]} Rxa8 {[%emt 0:00:14]} 26. d5 {[%emt 0:00:05]} e5 {[%emt 0:06:07]} 27. f4 {[%emt 0:00:38]} f6 {[%emt 0:01:06]} 28. Re4 {[%emt 0:05:45]} 1/2-1/2

[Event "EYCC Open-U10 2019"]
[Site "Bratislava"]
[Date "2019.08.08"]
[Round "7.9"]
[White "Zverev, Lev"]
[Black "Gal, Andrej"]
[Result "1-0"]
[ECO "B33"]
[WhiteElo "1849"]
[BlackElo "1705"]
[Annotator "NA"]
[PlyCount "77"]
[EventDate "2019.08.02"]
[EventType "swiss"]
[EventCountry "SVK"]
[SourceTitle "playchess.com"]
[Source "ChessBase"]
[SourceQuality "1"]
[TimeControl "40/5400+30:1800+30"]

1. e4 {[%emt 0:00:00]} c5 {[%emt 0:00:00]} 2. Nf3 {[%emt 0:00:00]} Nc6 {[%emt 0:00:00]} 3. d4 {[%emt 0:00:00]} cxd4 {[%emt 0:00:00]} 4. Nxd4 {[%emt 0:00:01]} Nf6 {[%emt 0:00:00]} 5. Nc3 {[%emt 0:00:10]} e5 {[%emt 0:00:00]} 6. Ndb5 {[%emt 0:00:07]} d6 {[%emt 0:00:08]} 7. Bg5 {[%emt 0:00:11]} a6 {[%emt 0:00:14]} 8. Na3 {[%emt 0:00:06]} b5 {[%emt 0:00:06]} 9. Bxf6 {[%emt 0:00:34]} gxf6 {[%emt 0:00:12]} 10. Nd5 {[%emt 0:00:08]} Bg7 {[%emt 0:00:20]} 11. g3 {[%emt 0:00:06]} f5 {[%emt 0:00:22]} 12. Bg2 {[%emt 0:00:07]} O-O {[%emt 0:06:21]} 13. exf5 {[%emt 0:00:08]} Bxf5 {[%emt 0:00:17]} 14. Ne3 {[%emt 0:00:10]} Ne7 {[%emt 0:04:53]} 15. Nxf5 {[%emt 0:08:06]} Nxf5 {[%emt 0:02:24]} 16. Qd3 {[%emt 0:01:54]} Nd4 {[%emt 0:05:02]} 17. Bxa8 {[%emt 0:01:07]} Qxa8 {[%emt 0:00:09]} 18. O-O-O {[%emt 0:00:06]} Qc6 {[%emt 0:04:04]} 19. Kb1 {[%emt 0:09:56]} e4 {[%emt 0:07:08]} 20. Qf1 {[%emt 0:00:16]} d5 {[%emt 0:01:16]} 21. c3 {[%emt 0:00:18]} Nf3 {[%emt 0:02:39]} 22. Nc2 {[%emt 0:00:33]} Qc5 {[%emt 0:02:28]} 23. Qe2 {[%emt 0:00:19]} Ne5 {[%emt 0:03:12]} 24. Ne3 {[%emt 0:05:17]} Nd3 {[%emt 0:02:30]} 25. Rhf1 {[%emt 0:05:10]} Rb8 26. Qg4 {[%emt 0:07:29]} Kh8 {[%emt 0:23:49]} 27. a3 {[%emt 0:18:03]} a5 {[%emt 0:10:42]} 28. Qg5 {[%emt 0:03:06]} Be5 {[%emt 0:03:48]} 29. Qf5 {[%emt 0:03:51]} f6 {[%emt 0:04:25]} 30. Ng4 {[%emt 0:00:35]} Qe7 {[%emt 0:00:28]} 31. f4 {[%emt 0:00:33]} exf3 {[%emt 0:02:46]} 32. Rxd3 {[%emt 0:00:55]} b4 {[%emt 0:00:12]} 33. axb4 {[%emt 0:00:21]} axb4 {[%emt 0:00:10]} 34. Nxe5 {[%emt 0:00:23]} bxc3 {[%emt 0:00:48]} 35. Rxc3 {[%emt 0:01:00]} fxe5 {[%emt 0:00:26]} 36. Rcxf3 {[%emt 0:00:09]} Rxb2+ {[%emt 0:00:32]} 37. Kxb2 {[%emt 0:00:21]} Qb4+ {[%emt 0:00:08]} 38. Rb3 {[%emt 0:00:06]} Qd4+ {[%emt 0:00:09]} 39. Kb1 {[%emt 0:00:06]} 1-0

[Event "EYCC Open-U10 2019"]
[Site "Bratislava"]
[Date "2019.08.08"]
[Round "7.10"]
[White "Helms, Finn"]
[Black "Navoyan, Gagik"]
[Result "0-1"]
[ECO "A45"]
[WhiteElo "1787"]
[BlackElo "1670"]
[Annotator "NA"]
[PlyCount "88"]
[EventDate "2019.08.02"]
[EventType "swiss"]
[EventCountry "SVK"]
[SourceTitle "playchess.com"]
[Source "ChessBase"]
[SourceQuality "1"]
[TimeControl "40/5400+30:1800+30"]

1. d4 {[%emt 0:00:00]} Nf6 {[%emt 0:00:00]} 2. Bf4 {[%emt 0:00:00]} d5 {[%emt 0:00:00]} 3. e3 {[%emt 0:00:00]} c5 {[%emt 0:00:20]} 4. c3 {[%emt 0:00:00]} Nc6 {[%emt 0:00:05]} 5. Nd2 {[%emt 0:00:01]} Qb6 {[%emt 0:00:37]} 6. Qb3 {[%emt 0:00:12]} c4 {[%emt 0:00:23]} 7. Qc2 {[%emt 0:00:27]} g6 {[%emt 0:00:22]} 8. e4 {[%emt 0:00:30]} Nxe4 {[%emt 0:02:14]} 9. Nxe4 {[%emt 0:00:29]} dxe4 {[%emt 0:00:06]} 10. Bxc4 {[%emt 0:00:18]} Bg7 {[%emt 0:05:53]} 11. Ne2 {[%emt 0:07:37]} Bf5 {[%emt 0:01:07]} 12. Be3 {[%emt 0:01:08]} Qc7 {[%emt 0:07:21]} 13. O-O {[%emt 0:08:51]} O-O {[%emt 0:03:54]} 14. Bb3 {[%emt 0:09:33]} Rac8 {[%emt 0:03:13]} 15. Rac1 {[%emt 0:08:04]} Qd7 {[%emt 0:02:29]} 16. Qb1 {[%emt 0:04:40]} e5 {[%emt 0:05:45]} 17. d5 {[%emt 0:02:57]} Na5 {[%emt 0:00:02]} 18. Rfd1 {[%emt 0:05:04]} Nxb3 {[%emt 0:00:12]} 19. axb3 {[%emt 0:00:08]} Bg4 20. Qc2 f5 {[%emt 0:04:01]} 21. Bxa7 {[%emt 0:07:48]} b5 {[%emt 0:04:36]} 22. Bb6 {[%emt 0:00:25]} f4 {[%emt 0:01:34]} 23. Qxe4 {[%emt 0:04:08]} f3 {[%emt 0:00:00]} 24. Ng3 {[%emt 0:02:19]} Rf4 {[%emt 0:01:33]} 25. Qd3 {[%emt 0:03:07]} fxg2 {[%emt 0:00:24]} 26. Re1 {[%emt 0:02:14]} Bf3 {[%emt 0:06:43]} 27. Ne2 {[%emt 0:07:59]} e4 {[%emt 0:03:02]} 28. Qe3 {[%emt 0:01:11]} Rh4 {[%emt 0:00:45]} 29. Qg5 {[%emt 0:01:12]} Rh5 {[%emt 0:01:04]} 30. Qg3 {[%emt 0:01:52]} Be5 {[%emt 0:00:57]} 31. Nf4 {[%emt 0:01:19]} Qf5 {[%emt 0:00:34]} 32. Nxh5 {[%emt 0:02:41]} Qxh5 {[%emt 0:00:13]} 33. d6 {[%emt 0:00:56]} Bxg3 {[%emt 0:00:27]} 34. fxg3 {[%emt 0:00:05]} Qd5 {[%emt 0:00:20]} 35. c4 {[%emt 0:00:44]} Qxd6 {[%emt 0:00:04]} 36. Be3 {[%emt 0:00:26]} bxc4 {[%emt 0:00:07]} 37. bxc4 {[%emt 0:00:03]} Qb4 {[%emt 0:00:39]} 38. c5 {[%emt 0:00:24]} Qxb2 {[%emt 0:01:14]} 39. Bf2 {[%emt 0:00:27]} Qb4 {[%emt 0:01:34]} 40. Rb1 {[%emt 0:00:14]} Qc4 {[%emt 0:00:18]} 41. Rec1 {[%emt 0:00:07]} Qd3 {[%emt 0:00:32]} 42. Rb6 {[%emt 0:01:30]} e3 {[%emt 0:00:13]} 43. Rb2 {[%emt 0:01:11]} exf2+ {[%emt 0:00:29]} 44. Rxf2 {[%emt 0:00:21]} Rd8 {[%emt 0:00:13]} 0-1

[Event "EYCC Open-U10 2019"]
[Site "Bratislava"]
[Date "2019.08.08"]
[Round "7.11"]
[White "Yonal, Timur"]
[Black "Zienkiewicz, Jan"]
[Result "1-0"]
[ECO "A57"]
[WhiteElo "1512"]
[BlackElo "1804"]
[Annotator "NA"]
[PlyCount "125"]
[EventDate "2019.08.02"]
[EventType "swiss"]
[EventCountry "SVK"]
[SourceTitle "playchess.com"]
[Source "ChessBase"]
[SourceQuality "1"]
[TimeControl "40/5400+30:1800+30"]

1. d4 {[%emt 0:00:02]} Nf6 {[%emt 0:00:04]} 2. c4 {[%emt 0:00:05]} c5 {[%emt 0:00:07]} 3. d5 {[%emt 0:00:20]} b5 {[%emt 0:00:15]} 4. cxb5 {[%emt 0:00:04]} a6 {[%emt 0:00:09]} 5. Nc3 {[%emt 0:00:05]} d6 {[%emt 0:00:40]} 6. e4 {[%emt 0:00:49]} g6 {[%emt 0:06:47]} 7. Nf3 {[%emt 0:07:06]} Bg7 {[%emt 0:01:18]} 8. Be2 {[%emt 0:08:15]} O-O {[%emt 0:01:08]} 9. O-O {[%emt 0:01:26]} axb5 {[%emt 0:02:55]} 10. Bxb5 {[%emt 0:00:34]} Ba6 {[%emt 0:00:54]} 11. Qe2 {[%emt 0:15:26]} Bxb5 {[%emt 0:08:00]} 12. Nxb5 {[%emt 0:02:20]} Na6 {[%emt 0:02:23]} 13. Bd2 {[%emt 0:17:34]} Nc7 {[%emt 0:02:48]} 14. Nxc7 {[%emt 0:00:30]} Qxc7 {[%emt 0:00:02]} 15. Bc3 {[%emt 0:00:14]} Rfb8 {[%emt 0:17:41]} 16. a3 {[%emt 0:09:42]} Nd7 {[%emt 0:06:15]} 17. Bxg7 {[%emt 0:00:15]} Kxg7 {[%emt 0:00:02]} 18. Ra2 {[%emt 0:04:28]} Rb6 {[%emt 0:09:23]} 19. Nd2 {[%emt 0:01:52]} Rab8 {[%emt 0:02:37]} 20. Nc4 {[%emt 0:00:08]} Rb3 {[%emt 0:08:04]} 21. f4 {[%emt 0:05:44]} f6 {[%emt 0:01:11]} 22. Re1 {[%emt 0:01:58]} Kf7 {[%emt 0:09:23]} 23. Qg4 {[%emt 0:03:36]} Nb6 {[%emt 0:01:26]} 24. Na5 {[%emt 0:08:07]} Rd3 {[%emt 0:04:24]} 25. Qe2 {[%emt 0:02:05]} c4 {[%emt 0:00:51]} 26. Nc6 {[%emt 0:00:18]} Re8 {[%emt 0:00:58]} 27. Rc1 {[%emt 0:06:11]} Rb3 {[%emt 0:06:43]} 28. Kh1 {[%emt 0:00:45]} c3 {[%emt 0:03:32]} 29. Rxc3 {[%emt 0:01:30]} Rxc3 {[%emt 0:00:12]} 30. bxc3 {[%emt 0:00:03]} e6 {[%emt 0:00:33]} 31. c4 {[%emt 0:00:44]} Kg7 {[%emt 0:03:29]} 32. Qd3 {[%emt 0:00:43]} Na4 {[%emt 0:01:04]} 33. Re2 {[%emt 0:01:20]} Nc5 {[%emt 0:00:16]} 34. Qc2 {[%emt 0:00:41]} Qb6 {[%emt 0:00:46]} 35. Re1 {[%emt 0:00:52]} exd5 {[%emt 0:00:28]} 36. cxd5 {[%emt 0:00:04]} Qa6 37. h3 {[%emt 0:01:26]} Qxa3 {[%emt 0:00:45]} 38. e5 {[%emt 0:00:33]} dxe5 {[%emt 0:00:07]} 39. fxe5 {[%emt 0:00:10]} fxe5 {[%emt 0:00:03]} 40. d6 {[%emt 0:00:00]} h6 {[%emt 0:00:00]} 41. Rd1 {[%emt 0:09:06]} Nd7 {[%emt 0:11:34]} 42. Ne7 {[%emt 0:00:29]} Nf8 {[%emt 0:08:26]} 43. Qc7 {[%emt 0:03:46]} Qb3 {[%emt 0:07:32]} 44. Rf1 {[%emt 0:07:19]} Qb5 {[%emt 0:00:58]} 45. Nf5+ {[%emt 0:01:40]} Kf6 {[%emt 0:00:26]} 46. Ng3+ {[%emt 0:00:54]} Ke6 {[%emt 0:04:09]} 47. Rxf8 {[%emt 0:00:51]} Rxf8 {[%emt 0:00:56]} 48. Qe7+ {[%emt 0:00:05]} Kd5 {[%emt 0:00:08]} 49. Qxf8 {[%emt 0:00:08]} e4 {[%emt 0:00:21]} 50. Qa8+ {[%emt 0:02:24]} Kxd6 51. Qxe4 {[%emt 0:01:01]} Qg5 {[%emt 0:00:26]} 52. Qd4+ {[%emt 0:00:35]} Ke6 {[%emt 0:00:04]} 53. Qc4+ {[%emt 0:00:15]} Ke7 {[%emt 0:00:09]} 54. Ne4 {[%emt 0:00:47]} Qf4 {[%emt 0:01:29]} 55. Qb4+ {[%emt 0:01:09]} Ke6 {[%emt 0:00:32]} 56. Nc5+ Kf5 57. g4+ {[%emt 0:00:26]} Kg5 {[%emt 0:00:11]} 58. Ne6+ {[%emt 0:00:11]} Kh4 {[%emt 0:00:03]} 59. Qxf4 {[%emt 0:00:09]} g5 {[%emt 0:00:18]} 60. Qf2+ {[%emt 0:00:18]} Kxh3 {[%emt 0:00:06]} 61. Qg2+ {[%emt 0:00:23]} Kh4 {[%emt 0:00:19]} 62. Nf8 {[%emt 0:00:14]} h5 {[%emt 0:00:12]} 63. Ng6# 1-0

[Event "EYCC Open-U10 2019"]
[Site "Bratislava"]
[Date "2019.08.08"]
[Round "7.12"]
[White "Bazilius, Augustinas"]
[Black "Giang, Tran Nam"]
[Result "0-1"]
[ECO "D08"]
[WhiteElo "1666"]
[BlackElo "1931"]
[Annotator "NA"]
[PlyCount "50"]
[EventDate "2019.08.02"]
[EventType "swiss"]
[EventCountry "SVK"]
[SourceTitle "playchess.com"]
[Source "ChessBase"]
[SourceQuality "1"]
[TimeControl "40/5400+30:1800+30"]

1. d4 {[%emt 0:00:00]} d5 {[%emt 0:00:00]} 2. c4 {[%emt 0:00:00]} e5 {[%emt 0:00:00]} 3. dxe5 {[%emt 0:00:11]} d4 {[%emt 0:00:00]} 4. Nf3 {[%emt 0:00:25]} Nc6 {[%emt 0:00:26]} 5. Bg5 {[%emt 0:05:51]} Be7 {[%emt 0:03:44]} 6. Bxe7 {[%emt 0:02:01]} Ngxe7 {[%emt 0:01:20]} 7. Nbd2 {[%emt 0:11:23]} Be6 {[%emt 0:16:19]} 8. Rc1 {[%emt 0:11:51]} Nf5 {[%emt 0:10:32]} 9. Nb3 Qe7 {[%emt 0:01:31]} 10. Qd2 {[%emt 0:08:56]} O-O-O {[%emt 0:05:10]} 11. a3 {[%emt 0:07:15]} f6 {[%emt 0:05:36]} 12. exf6 {[%emt 0:01:16]} Qxf6 {[%emt 0:04:18]} 13. Nc5 {[%emt 0:00:52]} Rhe8 {[%emt 0:04:39]} 14. b4 {[%emt 0:05:43]} h6 {[%emt 0:13:52]} 15. a4 {[%emt 0:10:35]} Bf7 {[%emt 0:06:04]} 16. Nd3 {[%emt 0:06:14]} Bh5 {[%emt 0:03:55]} 17. Kd1 {[%emt 0:05:27]} g5 {[%emt 0:02:46]} 18. h3 {[%emt 0:00:39]} Nd6 {[%emt 0:00:52]} 19. Nc5 {[%emt 0:03:28]} b6 {[%emt 0:00:37]} 20. Nd3 {[%emt 0:00:07]} Ne4 {[%emt 0:00:13]} 21. Qe1 {[%emt 0:00:38]} Nc3+ {[%emt 0:00:41]} 22. Kc2 {[%emt 0:00:46]} Bg6 {[%emt 0:00:26]} 23. Qd2 {[%emt 0:01:25]} Nxb4+ {[%emt 0:01:16]} 24. Kb3 {[%emt 0:00:54]} Nc6 {[%emt 0:00:46]} 25. g4 {[%emt 0:02:29]} Na5+ {[%emt 0:00:27]} 0-1